fUST/lending_fUST_20240310
["ID","MTS","AMOUNT","RATE_DAILY","PERIOD"]
[318101791,1710070240768,-158.315732,0.00023189,2]
[318101792,1710070240777,-159.532693,0.00023189,2]
[318101793,1710070240787,-178.105199,0.00023189,2]
[318101794,1710070240797,-456.404056,0.00023205,2]
[318101795,1710070240807,-662.36554,0.00023205,2]
[318101796,1710070240817,-664.719555,0.00023205,2]
[318101797,1710070240826,-173.322455,0.00023232,2]
[318101798,1710070240835,-239.437806,0.00023232,2]
[318101799,1710070240847,-459.948493,0.00023232,2]
[318101800,1710070240857,-1418.83,0.00023253,2]
[318101801,1710070240868,-751.67,0.00023253,2]
[318101802,1710070240878,-194.822882,0.000233,5]
[318101803,1710070240887,-160.0,0.00023386,4]
[318101804,1710070240898,-159.293966,0.00023436,2]
[318101805,1710070240908,-172.880325,0.00023436,2]
[318101806,1710070240918,-190.168357,0.00023436,2]
[318101807,1710070240928,-158.579163,0.00023436,2]
[318101808,1710070240937,-2780.7,0.00023484,2]
[318101809,1710070240946,-1662.21,0.00023484,2]
[318101810,1710070240958,-664.719555,0.00023485,2]
[318101811,1710070240968,-152.791901,0.00023485,2]
[318101812,1710070240977,-166.058679,0.00023485,2]
[318101813,1710070240987,-456.404056,0.00023488,2]
[318101814,1710070240997,-662.36554,0.00023488,2]
[318101815,1710070241008,-336.36226697,0.00023489,2]
[318101816,1710070241018,-173.322455,0.00023512,2]
[318101817,1710070241028,-239.437806,0.00023512,2]
[318101818,1710070241037,-459.948493,0.00023512,2]
[318101819,1710070241046,-3654.74,0.00023598,2]
[318101820,1710070241056,-500.0,0.00023599,2]
[318101821,1710070241066,-154.94148642,0.00023599,2]
[318101822,1710070241077,-500.0,0.00023599,2]
[318101823,1710070241086,-500.0,0.00023599,2]
[318101824,1710070241095,-4852.48,0.00023599,2]
[318101825,1710070241104,-500.0,0.00023599,2]
[318101826,1710070241115,-500.0,0.00023599,2]
[318101827,1710070241124,-500.0,0.00023599,2]
[318101828,1710070241134,-282.93994122,0.00023599,2]
[318101829,1710070241145,-10000.0,0.000236,14]
[318101830,1710070241155,-500.0,0.00023742,2]
[318101831,1710070241166,-500.0,0.00023742,2]
[318101832,1710070241175,-1661.27,0.00023742,2]
[318101833,1710070241186,-1000.0,0.00023743,7]
[318101834,1710070241196,-1000.0,0.00023743,7]
[318101835,1710070241205,-1000.0,0.00023743,7]
[318101836,1710070241214,-217.666633,0.00023743,2]
[318101837,1710070241224,-160.0,0.00023769,5]
[318101838,1710070241233,-456.404056,0.00023771,2]
[318101839,1710070241243,-662.36554,0.00023771,2]
[318101840,1710070241252,-179.532099,0.00023771,2]
[318101841,1710070241261,-1418.83,0.00023798,2]
[318101842,1710070241270,-751.67,0.00023798,2]
[318101843,1710070241279,-2780.7,0.00023799,2]
[318101844,1710070241289,-1662.21,0.00023799,2]
[318101845,1710070241298,-3654.74,0.00023799,2]
[318101846,1710070241307,-11018.76094902,0.000238,14]
[318101847,1710070241317,-500.0,0.00023895,2]
[318101848,1710070241325,-500.0,0.00023895,2]
[318101849,1710070241335,-4852.48,0.00023895,2]
[318101850,1710070241344,-450.71,0.00023895,2]
[318101851,1710070241353,-500.0,0.00023895,2]
[318101852,1710070241363,-500.0,0.00023895,2]
[318101853,1710070241372,-500.0,0.0002391,2]
[318101854,1710070241381,-1418.83,0.0002391,2]
[318101855,1710070241390,-2780.7,0.0002391,2]
[318101856,1710070241399,-751.67,0.0002391,2]
[318101857,1710070241409,-500.0,0.0002391,2]
[318101858,1710070241418,-1661.27,0.0002391,2]
[318101859,1710070241427,-1662.21,0.0002391,2]
[318101860,1710070241437,-3654.74,0.0002391,2]
[318101861,1710070241447,-23681.15374374,0.00023911,2]
[318101862,1710070241457,-500.0,0.00023996,2]
[318101863,1710070241467,-4852.48,0.00023996,2]
[318101864,1710070241476,-500.0,0.00023996,2]
[318101865,1710070241486,-500.0,0.00023998,2]
[318101866,1710070241497,-1418.83,0.00023998,2]
[318101867,1710070241507,-2780.7,0.00023998,2]
[318101868,1710070241516,-751.67,0.00023998,2]
[318101869,1710070241525,-500.0,0.00023998,2]
[318101870,1710070241537,-1661.27,0.00023998,2]
[318101871,1710070241548,-1662.21,0.00023998,2]
[318101872,1710070241558,-3654.74,0.00023998,2]
[318101873,1710070241567,-500.0,0.00023999,2]
[318101874,1710070241577,-500.0,0.00023999,2]
[318101875,1710070241587,-4852.48,0.00023999,2]
[318101876,1710070241597,-1418.83,0.00023999,2]
[318101877,1710070241607,-2780.7,0.00023999,2]
[318101878,1710070241618,-751.67,0.00023999,2]
[318101879,1710070241629,-500.0,0.00023999,2]
[318101880,1710070241639,-1661.27,0.00023999,2]
[318101881,1710070241650,-1662.21,0.00023999,2]
[318101882,1710070241659,-3654.74,0.00023999,2]
[318101883,1710070241668,-1500.0,0.00024,2]
[318101884,1710070241681,-1500.0,0.00024,2]
[318101885,1710070241690,-1500.0,0.00024,2]
[318101886,1710070241702,-1500.0,0.00024,2]
[318101887,1710070241713,-1500.0,0.00024,2]
[318101888,1710070241723,-1500.0,0.00024,2]
[318101889,1710070241733,-1500.0,0.00024,2]
[318101890,1710070241744,-1500.0,0.00024,2]
[318101891,1710070241754,-1516.95,0.00024,2]
[318101892,1710070241765,-2083.16,0.00024,4]
[318101893,1710070241776,-1492.17421661,0.00024,2]
[318101894,1710070241786,-19294.30829072,0.00024,4]
[318101895,1710070241875,-1129.21179302,0.00024,5]
[318101896,1710070241886,-155.14117847,0.00024,4]
[318101897,1710070241900,-229.97088805,0.00024,30]
[318101898,1710070241909,-160.0,0.00024152,6]
[318101899,1710070241919,-164.0,0.00024164,2]
[318101900,1710070241929,-155.6573459,0.00024234,2]
[318101901,1710070241938,-1000.0,0.00024252,7]
[318101902,1710070241948,-1000.0,0.00024252,7]
[318101903,1710070241958,-500.0,0.00024254,2]
[318101904,1710070241968,-4852.48,0.00024254,2]
[318101905,1710070241978,-500.0,0.00024255,2]
[318101906,1710070241988,-500.0,0.00024255,2]
[318101907,1710070241997,-4852.48,0.00024255,2]
[318101908,1710070242006,-1418.83,0.00024255,2]
[318101909,1710070242015,-2780.7,0.00024255,2]
[318101910,1710070242025,-751.67,0.00024255,2]
[318101911,1710070242034,-500.0,0.00024255,2]
[318101912,1710070242044,-1661.27,0.00024255,2]
[318101913,1710070242053,-1662.21,0.00024255,2]
[318101914,1710070242064,-3654.74,0.00024255,2]
[318101915,1710070242074,-197.0,0.00024255,2]
[318101916,1710070242085,-30000.0,0.00024256,5]
[318101917,1710070242095,-1418.83,0.00024399,2]
[318101918,1710070242106,-2780.7,0.00024399,2]
[318101919,1710070242116,-751.67,0.00024399,2]
[318101920,1710070242126,-1662.21,0.00024399,2]
[318101921,1710070242135,-10000.0,0.000244,30]
[318101922,1710070242146,-160.0,0.00024535,7]
[318101923,1710070242156,-250.0,0.00024599,21]
[318101924,1710070242166,-767.17004321,0.00024625,2]
[318101925,1710070242175,-767.17004319,0.00024626,2]
[318101926,1710070242186,-767.17004319,0.00024626,2]
[318101927,1710070242195,-500.0,0.00024627,2]
[318101928,1710070242205,-767.17004319,0.00024627,2]
[318101929,1710070242214,-500.0,0.00024627,2]
[318101930,1710070242224,-1661.27,0.00024627,2]
[318101931,1710070242233,-767.17004319,0.00024628,2]
[318101932,1710070242243,-767.17004319,0.00024628,2]
[318101933,1710070242252,-767.17004319,0.00024629,2]
[318101935,1710070242262,-767.17004319,0.0002463,2]
[318101936,1710070242272,-767.17004319,0.0002463,2]
[318101939,1710070242282,-767.17004319,0.00024631,2]
[318101941,1710070242292,-3654.74,0.00024633,2]
[318101942,1710070242302,-500.0,0.00024634,2]
[318101944,1710070242312,-4852.48,0.00024634,2]
[318101946,1710070242322,-500.0,0.00024657,2]
[318101948,1710070242331,-200.0,0.00024658,2]
[318101952,1710070242341,-380.0,0.00024658,2]
[318101955,1710070242351,-155.22441601,0.00024698,2]
[318101957,1710070242361,-6756.26549007,0.00024701,2]
[318101960,1710070242370,-1418.83,0.0002472,2]
[318101963,1710070242380,-751.67,0.0002472,2]
[318101965,1710070242389,-2780.7,0.00024721,2]
[318101968,1710070242399,-1662.21,0.00024721,2]
[318101971,1710070242409,-500.0,0.00024722,2]
[318101975,1710070242419,-500.0,0.00024722,2]
[318101980,1710070242428,-4852.48,0.00024722,2]
[318101983,1710070242437,-1418.83,0.00024722,2]
[318101988,1710070242447,-2780.7,0.00024722,2]
[318101991,1710070242456,-751.67,0.00024722,2]
[318101993,1710070242466,-500.0,0.00024722,2]
[318101995,1710070242475,-1661.27,0.00024722,2]
[318101997,1710070242485,-1662.21,0.00024722,2]
[318101999,1710070242495,-3654.74,0.00024722,2]
[318102001,1710070242504,-270.42095109,0.00024722,2]
[318102003,1710070242514,-500.0,0.00024723,2]
[318102005,1710070242523,-500.0,0.00024723,2]
[318102007,1710070242532,-4852.48,0.00024723,2]
[318102009,1710070242541,-4852.48,0.00024723,2]
[318102011,1710070242550,-1418.83,0.00024724,2]
[318102013,1710070242559,-751.67,0.00024724,2]
[318102015,1710070242568,-500.0,0.00024725,2]
[318102017,1710070242578,-500.0,0.00024725,2]
[318102019,1710070242587,-2965.59860924,0.00024725,2]
[318102026,1710070242635,-1886.88139076,0.00024725,2]
[318102029,1710070242646,-1418.83,0.00024725,2]
[318102031,1710070242655,-2780.7,0.00024725,2]
[318102033,1710070242665,-2780.7,0.00024725,2]
[318102035,1710070242674,-751.67,0.00024725,2]
[318102037,1710070242683,-500.0,0.00024725,2]
[318102040,1710070242692,-1661.27,0.00024725,2]
[318102043,1710070242702,-1662.21,0.00024725,2]
[318102046,1710070242711,-1557.73860924,0.00024725,2]
[318102049,1710070242723,-104.47139076,0.00024725,2]
[318102051,1710070242732,-1587.68731298,0.00024725,2]
[318102091,1710070243188,-1112.38878805,0.00024725,2]
[318102106,1710070245992,-549.64,0.00022949,2]
[318102107,1710070246002,-954.66389897,0.00024725,2]
[318102108,1710070246013,-155.13359736,0.00024725,2]
[318102109,1710070246022,-60.06589758,0.00024725,2]
[318102120,1710070901856,300.0,0.00027,120]
[318102204,1710071432125,-694.35,0.00020314,2]
[318102280,1710071438360,-780.06177418,0.00020314,2]
[318102282,1710071438369,-280.54842491,0.00020315,2]
[318102284,1710071438379,-336.69909941,0.00020315,2]
[318102286,1710071438388,-331.25647707,0.00020315,2]
[318102288,1710071438399,-2020.56022276,0.00020316,2]
[318102289,1710071438411,-23541.03563186,0.00020316,2]
[318102290,1710071438423,-506.1504533,0.00020316,2]
[318102328,1710071440046,-8239.53357952,0.00020316,2]
[318102329,1710071440059,-2635.84526288,0.00020316,2]
[318102372,1710071443051,-1647.75228183,0.00020316,2]
[318102375,1710071443112,-11086.47222631,0.00020316,2]
[318102376,1710071443121,-7443.8365072,0.00020317,2]
[318102377,1710071443131,-182.960172,0.0002086,2]
[318102378,1710071443140,-200.0,0.00022,2]
[318102379,1710071443150,-628.5066809,0.00022,2]
[318102380,1710071443159,-283.62137775,0.00022084,2]
[318102382,1710071443170,-500.0,0.00022084,2]
[318102384,1710071443179,-316.6645654,0.00022084,2]
[318102386,1710071443189,-500.0,0.00022084,2]
[318102388,1710071443199,-521.847593,0.00022085,2]
[318102389,1710071443208,-364.538276,0.00022085,2]
[318102391,1710071443217,-198.996392,0.00022085,2]
[318102393,1710071443226,-345.430907,0.00022085,2]
[318102395,1710071443235,-195.485361,0.00022085,2]
[318102396,1710071443244,-253.876281,0.00022085,2]
[318102398,1710071443253,-159.29397,0.00022085,2]
[318102400,1710071443265,-155.09150399,0.0002213,2]
[318102402,1710071443274,-521.847593,0.00022361,2]
[318102404,1710071443283,-364.538276,0.00022361,2]
[318102406,1710071443292,-198.996392,0.00022361,2]
[318102408,1710071443302,-345.430907,0.00022361,2]
[318102410,1710071443312,-195.485361,0.00022361,2]
[318102411,1710071443321,-253.876281,0.00022361,2]
[318102413,1710071443330,-521.847593,0.00022637,2]
[318102415,1710071443340,-364.538276,0.00022637,2]
[318102417,1710071443350,-198.996392,0.00022637,2]
[318102419,1710071443359,-345.430907,0.00022637,2]
[318102421,1710071443368,-195.485361,0.00022637,2]
[318102422,1710071443377,-253.876281,0.00022637,2]
[318102423,1710071443386,-500.0,0.00022739,2]
[318102424,1710071443395,-500.0,0.00022739,2]
[318102425,1710071443405,-500.0,0.00022739,2]
[318102426,1710071443418,-1153.23,0.00022739,2]
[318102427,1710071443427,-500.0,0.00022739,2]
[318102428,1710071443437,-2441.78,0.00022739,2]
[318102429,1710071443447,-3350.18,0.00022739,2]
[318102430,1710071443457,-500.0,0.00022739,2]
[318102431,1710071443467,-500.0,0.00022739,2]
[318102432,1710071443477,-1354.39,0.00022739,2]
[318102433,1710071443486,-500.0,0.00022739,2]
[318102434,1710071443497,-500.0,0.00022739,2]
[318102435,1710071443508,-689.03,0.00022739,2]
[318102436,1710071443518,-500.0,0.00022739,2]
[318102437,1710071443527,-3454.94,0.00022739,2]
[318102438,1710071443537,-500.0,0.00022739,2]
[318102439,1710071443548,-500.0,0.00022739,2]
[318102440,1710071443557,-1605.38,0.00022739,2]
[318102441,1710071443566,-500.0,0.00022739,2]
[318102442,1710071443575,-4878.53,0.00022739,2]
[318102443,1710071443585,-595.90374292,0.00022831,2]
[318102444,1710071443594,-305.48371478,0.00022831,2]
[318102445,1710071443603,-2191.64511444,0.00022831,2]
[318102446,1710071443612,-550.4176917,0.00022831,2]
[318102447,1710071443621,-500.0,0.000229,2]
[318102448,1710071443630,-500.0,0.000229,2]
[318102449,1710071443639,-499.67,0.000229,2]
[318102450,1710071443649,-2000.0,0.000229,2]
[318102451,1710071443658,-2000.0,0.0002291,2]
[318102452,1710071443669,-500.0,0.00022912,2]
[318102453,1710071443678,-305.4139373,0.00022912,2]
[318102454,1710071443688,-500.0,0.00022912,2]
[318102455,1710071443697,-3350.18,0.00022912,2]
[318102456,1710071443706,-500.0,0.00022912,2]
[318102457,1710071443716,-1354.39,0.00022912,2]
[318102458,1710071443725,-689.03,0.00022912,2]
[318102459,1710071443735,-500.0,0.00022912,2]
[318102460,1710071443744,-500.0,0.00022912,2]
[318102461,1710071443754,-521.847593,0.00022913,2]
[318102462,1710071443763,-364.538276,0.00022913,2]
[318102463,1710071443772,-198.996392,0.00022913,2]
[318102464,1710071443781,-345.430907,0.00022913,2]
[318102465,1710071443790,-195.485361,0.00022913,2]
[318102466,1710071443800,-253.876281,0.00022913,2]
[318102467,1710071443809,-2000.0,0.0002292,2]
[318102468,1710071443818,-1360.34467028,0.0002293,2]
[318102469,1710071443831,-639.65532972,0.0002293,2]
[318102470,1710071443841,-500.0,0.00022938,2]
[318102471,1710071443850,-1153.23,0.00022938,2]
[318102472,1710071443859,-2441.78,0.00022938,2]
[318102473,1710071443868,-500.0,0.00022938,2]
[318102474,1710071443877,-500.0,0.00022938,2]
[318102475,1710071443886,-500.0,0.00022938,2]
[318102476,1710071443896,-500.0,0.00022938,2]
[318102477,1710071443906,-1605.38,0.00022938,2]
[318102478,1710071443915,-500.0,0.00022939,2]
[318102479,1710071443924,-465.23574571,0.00022939,2]
[318102480,1710071443933,-500.0,0.00022939,2]
[318102481,1710071443942,-500.74217938,0.00022939,2]
[318102482,1710071443952,-515.42353091,0.00022939,2]
[318102483,1710071443961,-500.0,0.00022939,2]
[318102484,1710071443970,-500.0,0.00022939,2]
[318102485,1710071443979,-500.0,0.00022939,2]
[318102486,1710071443989,-500.0,0.00022939,2]
[318102487,1710071443997,-300.05000001,0.00022939,2]
[318102488,1710071444006,-500.0,0.00022939,2]
[318102489,1710071444015,-500.0,0.00022939,2]
[318102490,1710071444024,-500.0,0.00022939,2]
[318102491,1710071444034,-500.0,0.00022939,2]
[318102492,1710071444043,-500.0,0.00022939,2]
[318102493,1710071444052,-500.0,0.00022939,2]
[318102494,1710071444061,-250.94705874,0.00022939,2]
[318102495,1710071444071,-500.0,0.00022939,2]
[318102496,1710071444080,-500.0,0.00022939,2]
[318102497,1710071444089,-500.0,0.00022939,2]
[318102498,1710071444099,-500.0,0.00022939,2]
[318102499,1710071444108,-2000.0,0.0002294,2]
[318102500,1710071444117,-2000.0,0.0002295,2]
[318102501,1710071444126,-2000.0,0.0002296,2]
[318102502,1710071444135,-3853.312332,0.0002297,2]
[318102503,1710071444144,-500.0,0.00022991,2]
[318102504,1710071444154,-3454.94,0.00022991,2]
[318102505,1710071444165,-4878.53,0.00022991,2]
[318102506,1710071444174,-500.0,0.00022994,2]
[318102507,1710071444183,-500.0,0.00022994,2]
[318102508,1710071444193,-500.0,0.00022994,2]
[318102509,1710071444202,-500.0,0.00022994,2]
[318102510,1710071444213,-500.0,0.00022994,2]
[318102511,1710071444222,-505.13052132,0.00022994,2]
[318102512,1710071444233,-500.0,0.00022994,2]
[318102513,1710071444242,-500.0,0.00022994,2]
[318102514,1710071444251,-500.0,0.00022994,2]
[318102515,1710071444263,-500.0,0.00022994,2]
[318102516,1710071444272,-500.0,0.00022994,2]
[318102517,1710071444282,-500.0,0.00022994,2]
[318102518,1710071444291,-500.0,0.00022994,2]
[318102519,1710071444301,-500.0,0.00022997,2]
[318102520,1710071444310,-3350.18,0.00022997,2]
[318102521,1710071444321,-500.0,0.00022997,2]
[318102522,1710071444331,-1354.39,0.00022997,2]
[318102523,1710071444340,-689.03,0.00022997,2]
[318102524,1710071444350,-500.0,0.00022997,2]
[318102525,1710071444359,-500.0,0.00022997,2]
[318102526,1710071444369,-356.18480578,0.00022998,2]
[318102527,1710071444379,-274.66,0.00022998,2]
[318102528,1710071444388,-500.0,0.00022998,2]
[318102529,1710071444397,-500.0,0.00022998,2]
[318102530,1710071444408,-450.71,0.00022998,2]
[318102531,1710071444420,-500.0,0.00022998,2]
[318102532,1710071444430,-500.0,0.00022998,2]
[318102533,1710071444439,-500.0,0.00022998,2]
[318102534,1710071444449,-1153.23,0.00022998,2]
[318102535,1710071444461,-500.0,0.00022998,2]
[318102536,1710071444470,-2441.78,0.00022998,2]
[318102537,1710071444480,-500.0,0.00022998,2]
[318102538,1710071444490,-500.0,0.00022998,2]
[318102539,1710071444500,-500.0,0.00022998,2]
[318102540,1710071444509,-500.0,0.00022998,2]
[318102541,1710071444519,-500.0,0.00022998,2]
[318102542,1710071444528,-500.0,0.00022998,2]
[318102543,1710071444537,-500.0,0.00022998,2]
[318102544,1710071444546,-1605.38,0.00022998,2]
[318102545,1710071444556,-559.24,0.00022999,2]
[318102546,1710071444565,-500.0,0.00022999,2]
[318102547,1710071444574,-500.0,0.00022999,2]
[318102548,1710071444584,-500.0,0.00022999,2]
[318102549,1710071444593,-282.93994122,0.00022999,2]
[318102550,1710071444603,-500.0,0.00022999,2]
[318102551,1710071444612,-500.0,0.00022999,2]
[318102552,1710071444622,-500.0,0.00023044,2]
[318102553,1710071444632,-3454.94,0.00023044,2]
[318102554,1710071444641,-4878.53,0.00023044,2]
[318102555,1710071444651,-500.0,0.00023045,2]
[318102556,1710071444660,-364.538276,0.00023189,2]
[318102557,1710071444671,-521.847593,0.00023189,2]
[318102558,1710071444680,-198.996392,0.00023189,2]
[318102559,1710071444690,-345.430907,0.00023189,2]
[318102560,1710071444699,-195.485361,0.00023189,2]
[318102561,1710071444709,-253.876281,0.00023189,2]
[318102562,1710071444718,-500.0,0.00023512,2]
[318102563,1710071444728,-153.0,0.00023781,2]
[318102564,1710071444737,-153.0,0.00023781,2]
[318102565,1710071444746,-153.0,0.00023781,2]
[318102566,1710071444756,-153.0,0.00023781,2]
[318102567,1710071444765,-153.0,0.00023781,2]
[318102568,1710071444774,-500.0,0.00023796,2]
[318102569,1710071444784,-1153.23,0.00023796,2]
[318102570,1710071444793,-2441.78,0.00023796,2]
[318102571,1710071444802,-500.0,0.00023796,2]
[318102572,1710071444811,-500.0,0.00023796,2]
[318102573,1710071444821,-500.0,0.00023796,2]
[318102574,1710071444830,-500.0,0.00023796,2]
[318102575,1710071444839,-1605.38,0.00023796,2]
[318102576,1710071444848,-500.0,0.00023799,2]
[318102577,1710071444857,-500.0,0.00023799,2]
[318102578,1710071444866,-3350.18,0.00023799,2]
[318102579,1710071444875,-500.0,0.00023799,2]
[318102580,1710071444884,-1354.39,0.00023799,2]
[318102581,1710071444893,-689.03,0.00023799,2]
[318102582,1710071444903,-500.0,0.00023799,2]
[318102583,1710071444912,-500.0,0.00023799,2]
[318102584,1710071444921,-2046.59106138,0.000238,14]
[318102600,1710071446115,-334.26,0.00022739,2]
[318102601,1710071446176,-165.74,0.00022739,2]
[318102602,1710071446185,-2944.1,0.00022739,2]
[318102603,1710071446195,-1442.50792004,0.000238,14]
[318102607,1710072044809,20000.0,0.00024781,60]
[318102685,1710072632622,-280.54842491,0.00021296,2]
[318102686,1710072632631,-155.11168041,0.00021297,2]
[318102688,1710072632641,-247.03023,0.00021298,2]
[318102689,1710072632650,-20000.0,0.0002178,14]
[318102690,1710072632660,-1000.5257214,0.00021935,2]
[318102692,1710072632670,-200.74,0.00022,2]
[318102694,1710072632679,-327.45198075,0.00022737,2]
[318102695,1710072632688,-8247.0923253,0.00022737,2]
[318102697,1710072632698,-500.0,0.00022738,2]
[318102698,1710072632707,-500.0,0.00022738,2]
[318102699,1710072632718,-500.0,0.00022738,2]
[318102700,1710072632728,-500.0,0.00022738,2]
[318102702,1710072632741,-371.10770924,0.00022738,2]
[318102703,1710072632751,-500.0,0.00022738,2]
[318102704,1710072632763,-500.0,0.00022738,2]
[318102705,1710072632773,-500.0,0.00022738,2]
[318102706,1710072632783,-500.0,0.00022739,2]
[318102707,1710072632794,-475.58613006,0.00022739,2]
[318102708,1710072632805,-465.95180104,0.00022739,2]
[318102709,1710072632818,-500.0,0.00022739,2]
[318102710,1710072632830,-643.69860367,0.00022739,2]
[318102711,1710072632840,-500.0,0.00022739,2]
[318102712,1710072632850,-500.0,0.00022739,2]
[318102713,1710072632862,-500.0,0.00022739,2]
[318102714,1710072632872,-500.0,0.00022739,2]
[318102715,1710072632883,-500.0,0.00022739,2]
[318102716,1710072632893,-500.0,0.00022739,2]
[318102717,1710072632904,-500.0,0.00022739,2]
[318102718,1710072632915,-425.73260742,0.00022739,2]
[318102719,1710072632925,-321.01301817,0.00022739,2]
[318102720,1710072632936,-501.18666575,0.00022739,2]
[318102721,1710072632946,-500.0,0.00022739,2]
[318102722,1710072632955,-500.0,0.00022739,2]
[318102723,1710072632967,-500.0,0.00022739,2]
[318102724,1710072632977,-500.0,0.00022739,2]
[318102725,1710072632988,-500.0,0.00022739,2]
[318102726,1710072632998,-500.0,0.00022739,2]
[318102727,1710072633008,-500.0,0.00022739,2]
[318102728,1710072633019,-500.0,0.00022739,2]
[318102729,1710072633029,-501.23694101,0.00022739,2]
[318102730,1710072633038,-500.0,0.00022739,2]
[318102731,1710072633048,-500.0,0.00022739,2]
[318102732,1710072633058,-500.0,0.00022739,2]
[318102733,1710072633069,-500.0,0.00022739,2]
[318102734,1710072633078,-1002.69,0.00022739,2]
[318102735,1710072633088,-2821.43,0.00022739,2]
[318102736,1710072633097,-261.35741972,0.00022739,2]
[318102737,1710072633106,-500.0,0.00022739,2]
[318102738,1710072633117,-1222.1,0.00022739,2]
[318102739,1710072633127,-636.83,0.00022739,2]
[318102740,1710072633136,-2498.26,0.00022739,2]
[318102741,1710072633146,-500.0,0.00022739,2]
[318102742,1710072633156,-500.0,0.00022739,2]
[318102743,1710072633168,-500.0,0.00022739,2]
[318102744,1710072633177,-500.0,0.00022739,2]
[318102745,1710072633187,-307.9590999,0.00022739,2]
[318102746,1710072633198,-500.0,0.00022739,2]
[318102747,1710072633208,-500.0,0.00022739,2]
[318102748,1710072633218,-151.0,0.00022739,2]
[318102749,1710072633228,-500.0,0.00022739,2]
[318102750,1710072633238,-500.0,0.00022739,2]
[318102751,1710072633247,-2389.69904163,0.00022739,2]
[318102998,1710072640336,-836.80095837,0.00022739,2]
[318102999,1710072640346,-500.0,0.00022739,2]
[318103000,1710072640356,-1476.26,0.00022739,2]
[318103001,1710072640365,-500.0,0.00022739,2]
[318103002,1710072640374,-615.67775199,0.00022739,2]
[318103003,1710072640384,-500.0,0.00022739,2]
[318103004,1710072640496,-418.83344746,0.00022739,2]
[318103005,1710072640512,-81.16655254,0.00022739,2]
[318103006,1710072640523,-503.63414824,0.00022739,2]
[318103007,1710072640533,-500.0,0.00022739,2]
[318103008,1710072640543,-500.0,0.00022739,2]
[318103009,1710072640552,-500.0,0.00022739,2]
[318103010,1710072640562,-363.7186061,0.00022739,2]
[318103011,1710072640572,-599.43,0.00022739,2]
[318103012,1710072640581,-496.98577069,0.00022831,2]
[318103013,1710072640591,-417.64676238,0.00022831,2]
[318103014,1710072640601,-473.62353187,0.000229,2]
[318103256,1710072643304,-500.0,0.00022738,2]
[318103258,1710072643314,-500.0,0.00022738,2]
[318103260,1710072643323,-500.0,0.00022738,2]
[318103262,1710072643332,-500.0,0.00022738,2]
[318103264,1710072643342,-500.0,0.00022738,2]
[318103266,1710072643352,-500.0,0.00022738,2]
[318103268,1710072643361,-500.0,0.00022738,2]
[318103270,1710072643371,-500.0,0.00022738,2]
[318103272,1710072643380,-186.17642223,0.00022738,2]
[318103274,1710072643390,-500.0,0.00022738,2]
[318103276,1710072643399,-500.0,0.00022738,2]
[318103278,1710072643409,-500.0,0.00022738,2]
[318103280,1710072643418,-500.0,0.00022738,2]
[318103282,1710072643428,-500.0,0.00022738,2]
[318103284,1710072643437,-500.0,0.00022738,2]
[318103286,1710072643447,-500.0,0.00022738,2]
[318103288,1710072643456,-1526.37646813,0.000229,2]
[318103290,1710072643466,-301.908317,0.000229,10]
[318103292,1710072643476,-213.64488984,0.0002291,2]